Cogmind - Beta 12 @@@ ROGUE MODE // 2023.04.27 @ 04:47:17 Player: maxwell Result: Destroyed by as-97415 with Assembled Focal Cannon Performance ------------- Evolutions (4) 2000 Regions Visited (14) 2800 Robots Destroyed (163) 815 Value Destroyed (5551) 5551 Prototype IDs (23) 460 Alien Tech Used (0) 0 Bonus (1602) 1602 TOTAL SCORE: 13228 Bonus ------- High Alert Combat Kills 150 Follower Combat Kills 371 Destroyed Z-Imprinter 1000 Triggered Deep Caves Wall 500 Exposed GOLEM Chamber 500 Friendly Fire -919 Cogmind --------- Core Integrity 0/850 Matter 10/300 Energy 210/290 System Corruption 12% Temperature Cool (12) Movement Core (1600) Ox31 Location -6/Deep Caves Parts ------- > --- POWER (1) -------- Improved Deuterium Engine > --- PROPULSION (6) --- (None) > --- UTILITY (6) ------ Experimental Heat Sink Huge Storage Unit Experimental Signal Interpreter > --- WEAPON (2) ------- EM Pulse Cannon > --- INVENTORY (25) --- Zionite Light DM Reactor Zionite Light DM Reactor Zionite Glidesys I Experimental Heat Sink Cargo Storage Unit Advanced Sensor Array Experimental Signal Interpreter Advanced Terrain Scanner Shield Generator Hacking Suite Authchip [Storage] Long-range Tractor Beam Hacking Drone Bay (1/1) Tesla Rifle Improved Proton Missile Launcher Improved Proton Missile Launcher Improved Proton Missile Launcher Peak State ------------ > --- POWER ------------ Zionite Light DM Reactor > --- PROPULSION ------- Armored Treads Armored Treads Carbon-fiber Leg Carbon-fiber Leg Zionite Composite Leg I Zionite Glidesys I > --- UTILITY ---------- Experimental Heat Sink Huge Storage Unit Experimental Signal Interpreter Zionite Weapon Casing Zionite Light Carapace Zionite Light Carapace > --- WEAPON ----------- Disruptor Cannon Improved Proton Missile Launcher > --- INVENTORY -------- Improved Deuterium Engine Zionite Light DM Reactor Zionite Light DM Reactor Zionite Glidesys I Experimental Heat Sink Cargo Storage Unit Advanced Sensor Array Experimental Signal Interpreter Advanced Terrain Scanner Propulsion Shielding Zionite Light Carapace Shield Generator Hacking Suite Authchip [Storage] Long-range Tractor Beam Hacking Drone Bay Tesla Rifle EM Pulse Cannon Improved Proton Missile Launcher Improved Proton Missile Launcher Mini Grenade Launcher [Rating: 87] Favorites ----------- Power Micro Nuclear Core Engine Deuterium Engine Power Core Micro Nuclear Core Reactor Zionite Light DM Reactor Propulsion Light Treads Treads Light Treads Leg Zionite Composite Leg I Wheel Wheel Hover Unit Zionite Glidesys I Utility Huge Storage Unit Device Disposable Heat Sink Storage Huge Storage Unit Processor Experimental Signal Interpreter Hackware Hacking Suite Protection Heavy Armor Plating Weapon Heavy Particle Cannon Energy Gun Spread Laser Energy Cannon Heavy Particle Cannon Ballistic Gun Light Assault Rifle Ballistic Cannon Heavy Flak Cannon Launcher Missile Launcher Impact Weapon Makeshift Hammer Build | -11 -10 -10 -9 -9 -9 -8 -8 -8 -8 -6 -6 -6 -6 -6 ------- Run | Jun Mat Min Mat Min Exi Min Mat Sto Rec Fac Low Low Zio Dee Slots Evolved 8 | . . . 2 . . . 2 . . 4 . . . . Power . | . . . . . . . . . . . . . . . Propulsion 4 | . . . 1 . . . 1 . . 2 . . . . Utility 4 | . . . 1 . . . 1 . . 2 . . . . Weapon . | . . . . . . . . . . . . . . . Parts Attached 202 | . 11 12 6 3 . 6 10 37 4 15 16 6 12 64 Power 12 | . 1 2 1 . . . 1 1 . 2 . . . 4 Engine 8 | . 1 1 1 . . . 1 1 . 1 . . . 2 Core 2 | . . 1 . . . . . . . 1 . . . . Reactor 2 | . . . . . . . . . . . . . . 2 Propulsion 41 | . 3 2 1 1 . 1 2 7 2 4 2 1 . 15 Treads 32 | . 3 2 1 1 . 1 . 4 2 4 2 1 . 11 Leg 3 | . . . . . . . . . . . . . . 3 Wheel 5 | . . . . . . . 2 3 . . . . . . Hover 1 | . . . . . . . . . . . . . . 1 Flight . | . . . . . . . . . . . . . . . Utility 77 | . 4 1 2 1 . 1 2 12 2 6 10 . 12 24 Device 36 | . 2 1 . . . . . 4 1 2 9 . 4 13 Storage 3 | . 2 . 1 . . . . . . . . . . . Processor 7 | . . . . . . . . . 1 1 1 . 4 . Hackware 4 | . . . . . . . 1 2 . . . . 1 . Protection 27 | . . . 1 1 . 1 1 6 . 3 . . 3 11 Artifact . | . . . . . . . . . . . . . . . Weapon 72 | . 3 7 2 1 . 4 5 17 . 3 4 5 . 21 Energy Gun 11 | . 2 3 . . . . . . . . 1 1 . 4 Energy Cannon 32 | . . 2 1 . . 3 2 11 . 1 1 2 . 9 Ballistic Gun 1 | . 1 . . . . . . . . . . . . . Ballistic Cannon 3 | . . . . . . . . . . 1 1 . . 1 Launcher 20 | . . 2 1 1 . 1 2 3 . 1 1 1 . 7 Special Weapon . | . . . . . . . . . . . . . . . Impact Weapon 5 | . . . . . . . 1 3 . . . 1 . . Slashing Weapon . | . . . . . . . . . . . . . . . Piercing Weapon . | . . . . . . . . . . . . . . . Special Melee Weapon . | . . . . . . . . . . . . . . . Unidentified Prototypes 17 | . . . 1 . . . . . . . . . 8 8 Corrupted Parts 6 | . . . . . . . . . 1 . . . . 5 System Corruption 22 | . . . . . . . . . 10 . . . . 12 Parts Lost 62 | . 2 3 . 2 . 3 1 12 . 2 1 . 1 35 Power 6 | . 1 1 . . . . . 1 . . . . . 3 Propulsion 25 | . 1 2 . 1 . 2 1 3 . . 1 . . 14 Utility 19 | . . . . 1 . 1 . 5 . 1 . . 1 10 Weapon 12 | . . . . . . . . 3 . 1 . . . 8 Highest Loss Streak 13 | . 1 1 . 1 . 2 1 2 . 2 1 . 1 13 To Critical Strikes . | . . . . . . . . . . . . . . . Average Slot Usage (%) 93 | . 99 98 96 99 100 92 87 88 98 93 92 93 92 84 Engine 6 | . 14 12 11 11 11 11 9 9 9 5 . . . . Core 1 | . . . . . . . . . . . 6 6 6 . Treads 31 | . 23 27 30 32 33 25 18 22 36 39 39 40 40 28 Leg 1 | . 4 . . . . . . . . . . . . 3 Device 8 | . 13 14 11 11 11 11 . 3 . 1 6 6 5 9 Storage 8 | . 14 14 11 11 11 11 9 9 9 6 6 6 6 6 Processor 5 | . . . . . . . . . 7 11 13 13 13 6 Hackware 1 | . . . . . . . 8 9 9 6 . . . . Protection 6 | . . . 11 11 11 10 8 7 9 8 6 6 5 9 Energy Gun 4 | . 27 10 . . . . . . . . 2 6 6 1 Energy Cannon 9 | . . 12 20 14 11 14 14 16 18 7 6 2 6 7 Launcher 2 | . . 4 1 7 11 7 2 . . . . 1 . 1 Naked Turns . | . . . . . . . . . . . . . . . Heaviest Build 121 | 11 92 96 108 106 106 108 116 116 108 119 116 114 113 121 Greatest Support 129 | 20 40 40 60 60 60 60 26 80 83 129 129 129 126 126 Greatest Overweight (x) 11 | . 4 2 2 1 1 2 11 11 1 1 1 . . 4 Average Overweight (x) . | . 1 2 1 1 1 1 4 3 1 . . . . . Largest Inventory Capacity 25 | . 25 25 25 25 25 25 25 25 25 25 25 25 25 25 Average Capacity 24 | . 22 25 25 25 25 25 25 25 25 25 25 25 25 25 Most Carried 25 | . 23 25 25 25 24 25 25 25 25 25 25 25 25 25 Average Carried 22 | . 16 23 24 23 24 23 21 21 24 23 24 24 24 22 Final Capacity 25 | 8 25 25 25 25 25 25 25 25 25 25 25 25 25 25 Final Carried 25 | 6 21 24 25 24 24 24 22 24 25 25 25 25 25 18 Class Distribution -------------------- 69% | Mutant 20% | Scavenger-Mutant 9% | Commander-Mutant Dominant Class ---------------- Mutant | -10/Materials Mutant | -10/Mines Mutant | -9/Materials Mutant | -9/Mines Mutant | -9/Exiles Mutant | -8/Mines Scavenger-Mutant | -8/Materials Scavenger-Mutant | -8/Storage Commander-Mutant | -8/Recycling Scavenger-Mutant | -6/Factory Mutant | -6/Lower Caves Mutant | -6/Lower Caves Mutant | -6/Zion Scavenger-Mutant | -6/Deep Caves Resources | -11 -10 -10 -9 -9 -9 -8 -8 -8 -8 -6 -6 -6 -6 -6 ----------- Run | Jun Mat Min Mat Min Exi Min Mat Sto Rec Fac Low Low Zio Dee Matter Collected 3162 | 200 133 254 55 56 . 127 281 414 47 223 340 88 74 870 Remotely . | . . . . . . . . . . . . . . . Salvage Created 7569 | . 700 142 411 302 . 323 441 1752 47 617 590 452 . 1792 Parts 308 | . 39 4 29 16 . 23 24 77 . 25 12 19 . 40 Haulers Intercepted 4 | . 2 . 1 . . . 1 . . . . . . . Recyclers Shooed 1 | . . . . . . . . 1 . . . . . . Parts Field Recycled . | . . . . . . . . . . . . . . . Retrieved Matter . | . . . . . . . . . . . . . . . Parts Self-Destructed 13 | . . . . . . . . . . . 9 4 . . Prevented 9 | . . . . . . . . . . . . 9 . . Kills | -11 -10 -10 -9 -9 -9 -8 -8 -8 -8 -6 -6 -6 -6 -6 ------- Run | Jun Mat Min Mat Min Exi Min Mat Sto Rec Fac Low Low Zio Dee Combat Hostiles Destroyed 172 | . 17 14 7 8 . 15 12 27 . 7 8 7 . 50 Melee 1 | . . . . . . . . . . . . . . 1 Guns 20 | . 17 3 . . . . . . . . . . . . Cannons 43 | . . 1 7 4 . 2 2 18 . 3 6 . . . AOE 94 | . . 10 . 4 . 12 8 5 . 3 2 5 . 45 Classes Destroyed 21 | . 4 4 2 2 . 2 1 2 . 1 1 . . 2 Worker 5 | . . 1 1 1 . 1 . . . 1 . . . . Builder 5 | . . 3 . . . . 2 . . . . . . . Tunneler 2 | . . . . 1 . 1 . . . . . . . . Hauler 4 | . 2 . 1 . . . 1 . . . . . . . Recycler 6 | . 1 . . 1 . . . 3 1 . . . . . Minesweeper 1 | . . . . . . . . . . . 1 . . . Mechanic 2 | . . . . . . . 1 1 . . . . . . Operator 4 | . . . 1 . . . . 1 . 2 . . . . Watcher 8 | . 3 . 3 . . . 1 1 . . . . . . Swarmer 20 | . . . . 4 . 8 3 . . . 5 . . . Grunt 67 | . 17 1 5 4 . 4 7 14 . 8 . 7 . . Brawler 5 | . . . . . . 2 1 2 . . . . . . Duelist 1 | . . . . . . . . 1 . . . . . . Protector 1 | . . . . . . . . 1 . . . . . . Sentry 12 | . . . 2 . . . . 9 . 1 . . . . Demolisher 2 | . . 2 . . . . . . . . . . . . Hunter 4 | . . . . . . 1 1 . . . 2 . . . Programmer 2 | . . . . . . . . . . 1 1 . . . Z-Technician 4 | . . . . . . . . . . . . . . 4 Z-Light 8 | . . . . . . . . . . . . . . 8 Assembled 48 | . . 11 . . . . . . . . . . . 37 Golem 4 | . . . . . . . . . . . . . . 4 Thug 1 | . . . . . . . . 1 . . . . . . Savage 1 | . . . . . . . . . . . . . . 1 Best Kill Streak 38 | . 3 5 3 4 . 4 7 6 1 4 3 4 . 38 Combat Bots Only 38 | . 3 5 3 4 . 4 4 6 . 4 3 4 . 38 Max Kills in Single Turn 7 | . 1 4 1 4 . 3 2 3 1 3 2 3 . 7 Gunslinging . | . . . . . . . . . . . . . . . Exploded 7 | . . 4 . 4 . 3 2 3 . 2 2 3 . 7 Melee 1 | . . . . . . . . . . . . . . 1 Uniques/NPCs Destroyed 1 | . . . . . . . . . . . . . . 1 Z-Imprinter (-6/Deep Caves) Combat | -11 -10 -10 -9 -9 -9 -8 -8 -8 -8 -6 -6 -6 -6 -6 -------- Run | Jun Mat Min Mat Min Exi Min Mat Sto Rec Fac Low Low Zio Dee Damage Taken 10270 | . 437 616 128 369 . 407 316 1769 . 423 704 58 . 5043 Core 1234 | . 81 54 . 20 . 15 . 200 . 55 88 19 . 702 Absorbed by Shields . | . . . . . . . . . . . . . . . Redirected to Shielding 294 | . . . . . . . . 18 . 58 . . . 218 Regen/Repaired (Parts) 700 | . . . . . . . . . . 700 . . . . Core Remaining (%) 75 | 100 . 46 . . . 91 . . 63 . . . . . Volleys Fired 411 | . 46 15 19 14 . 15 26 84 1 18 24 10 . 139 Largest 2 | . 2 2 2 2 . 2 2 2 2 2 2 1 . 2 Hottest 156 | . 130 143 143 143 . 143 126 138 138 138 128 75 . 156 Shots Fired 625 | . 93 23 37 27 . 23 35 153 4 26 41 10 . 153 Gun 134 | . 93 14 . . . . . . . . 8 . . 19 Cannon 395 | . . 2 36 26 . 16 19 144 4 21 32 2 . 93 Launcher 96 | . . 7 1 1 . 7 16 9 . 5 1 8 . 41 Special . | . . . . . . . . . . . . . . . Kinetic 41 | . . . . . . . . . . 7 15 . . 19 Thermal 332 | . 93 16 36 26 . 2 . 106 2 13 14 2 . 22 Explosive 62 | . . 7 1 1 . 7 16 6 . . 1 . . 23 Electromagnetic 190 | . . . . . . 14 19 41 2 6 11 8 . 89 Robot Hit Streak 20 | . 14 6 9 6 . 5 16 16 4 7 15 20 . 18 Robot Miss Streak 21 | . 5 5 2 3 . 1 1 3 1 3 6 . . 21 Penetration Max . | . . . . . . . . . . . . . . . Secondary Targets 2 | . . 2 . . . . . . . . . . . . Max Gunslinging Chain 1 | . . 1 . . . . . . . . . . . . Shots Hit Robots 430 | . 82 18 24 18 . 14 25 97 3 14 36 5 . 94 Core Hits 546 | . 103 45 11 11 . 18 29 44 4 30 23 13 . 215 Critical Kills 3 | . . . 1 . . . . 2 . . . . . . Critical Parts Destroyed . | . . . . . . . . . . . . . . . Critical Strikes 6 | . . . 1 . . . . 4 . . 1 . . . Meltdown 3 | . . . 1 . . . . 2 . . . . . . Corrupt 3 | . . . . . . . . 2 . . 1 . . . Melee Attacks 18 | . . . . . . . 1 14 . . . 3 . . Impact 18 | . . . . . . . 1 14 . . . 3 . . Slashing . | . . . . . . . . . . . . . . . Piercing . | . . . . . . . . . . . . . . . Sneak Attacks 1 | . . . . . . . . 1 . . . . . . Combat Hostiles . | . . . . . . . . . . . . . . . Follow-up Attacks . | . . . . . . . . . . . . . . . Damage Inflicted 19502 | . 1215 954 583 673 . 1342 1583 3421 126 1083 982 784 . 6756 Guns 1830 | . 1207 188 . . . . . . . . 191 . . 244 Cannons 6436 | . . 21 569 404 . 243 443 2350 96 387 649 . . 1274 Explosions 10888 | . . 744 . 217 . 1073 1140 927 . 647 142 784 . 5214 Melee 137 | . . . . . . . . 137 . . . . . . Ramming 211 | . 8 1 14 52 . 26 . 7 30 49 . . . 24 Kinetic 575 | . . . . . . . . . . 156 217 . . 202 Thermal 6324 | . 1207 209 569 404 . 280 153 1818 50 426 343 222 . 643 Explosive 7284 | . . 744 . 217 . 814 987 350 . . 142 . . 4030 Electromagnetic 4971 | . . . . . . 222 443 1109 46 452 280 562 . 1857 Impact 137 | . . . . . . . . 137 . . . . . . Slashing . | . . . . . . . . . . . . . . . Piercing . | . . . . . . . . . . . . . . . Highest Corruption 12 | . 2 3 . . . . . 1 11 1 3 . . 12 Average Corruption 6 | . 2 2 . . . . . 1 9 1 1 . . 10 Corruption Purged 4 | . . . . . . . . . . . 4 . . . Corruption Blocked . | . . . . . . . . . . . . . . . Effects 233 | . 15 35 . . . . . 3 50 . 7 . . 123 Message Errors 63 | . 1 11 . . . . . 1 17 . 1 . . 32 Matter Fused 48 | . 5 5 . . . . . 1 12 . 1 . . 24 Heat Flow Errors 27 | . 2 5 . . . . . 1 6 . 2 . . 11 Energy Discharges 33 | . 2 5 . . . . . . 4 . . . . 22 Parts Rejected 1 | . . . . . . . . . . . . . . 1 Parts Fused 5 | . 1 3 . . . . . . . . . . . 1 Data Loss (minor) 32 | . 1 5 . . . . . . 7 . 1 . . 18 Data Loss (major) 13 | . 2 1 . . . . . . 2 . 1 . . 7 Misfires 4 | . 1 . . . . . . . 2 . . . . 1 Alerts 4 | . . . . . . . . . . . . . . 4 Misdirections 1 | . . . . . . . . . . . . . . 1 Weapon Failures 2 | . . . . . . . . . . . 1 . . 1 Overload Shots . | . . . . . . . . . . . . . . . Overflow Damage 523 | . . 46 . 14 . 42 22 54 . 19 37 26 . 263 Projectiles 119 | . . . . 10 . . 16 2 . 19 36 . . 36 Explosions 372 | . . 46 . 2 . 42 6 22 . . 1 26 . 227 Melee 32 | . . . . 2 . . . 30 . . . . . . Knockbacks 24 | . . . . 1 . . . . . 8 10 . . 5 Impact 1 | . . . . 1 . . . . . . . . . . Kinetic 21 | . . . . . . . . . . 7 9 . . 5 Secondary 2 | . . . . . . . . . . 1 1 . . . Self-Inflicted Damage 536 | . . 92 . . . 102 . 98 . 37 . . . 207 Shots 23 | . . 3 . . . 3 . 4 . 4 . . . 9 Rammed 19 | . 2 . 1 1 . 4 . 2 5 1 . . . 3 Targets Rammed 27 | . 2 1 2 3 . 5 . 2 6 2 . . . 4 Kicked . | . . . . . . . . . . . . . . . Crushed 8 | . . 1 1 2 . 1 . . 1 1 . . . 1 Highest Temperature 382 | . 374 192 193 196 . 190 312 382 236 120 261 52 238 260 Average Temperature 95 | . 103 87 74 122 . 85 104 120 84 36 68 24 119 76 Received Heat Transfer 2673 | . 267 . 60 195 . 36 189 792 . 150 . 21 . 963 Effects 6 | . . . . . . . 1 5 . . . . . . Interference 5 | . . . . . . . . 5 . . . . . . Matter Decay 1 | . . . . . . . 1 . . . . . . . Siege Activations . | . . . . . . . . . . . . . . . Robots Corrupted 12 | . . . . . . 1 2 2 . . 1 2 . 4 Combat Hostiles 11 | . . . . . . 1 2 2 . . . 2 . 4 Parts Fried 33 | . . . . . . 3 2 5 . . 2 3 . 18 Impact Corruptions 2 | . . . . 1 . . . 1 . . . . . . Robots Melted 5 | . . . 1 . . . . 3 . 1 . . . . Combat Hostiles 3 | . . . . . . . . 2 . 1 . . . . Parts Melted 17 | . . . 4 . . 1 . 9 . 2 1 . . . Heat Transferred 8514 | . 1500 267 925 666 . 387 100 2868 74 433 481 200 . 613 Parts Sabotaged . | . . . . . . . . . . . . . . . Parts Stolen . | . . . . . . . . . . . . . . . Parts Stripped . | . . . . . . . . . . . . . . . Power Chain Reactions 15 | . . . . . . 1 2 3 . 1 . 3 . 5 Missiles Intercepted . | . . . . . . . . . . . . . . . Alert | -11 -10 -10 -9 -9 -9 -8 -8 -8 -8 -6 -6 -6 -6 -6 ------- Run | Jun Mat Min Mat Min Exi Min Mat Sto Rec Fac Low Low Zio Dee Peak Influence 680 | . 203 81 305 251 . 210 442 469 176 680 . . . . Initial 253 | . . 62 6 76 . . 20 62 80 253 . . . . Average 124 | . 80 38 130 56 . 93 164 259 45 461 . . . . Maximum Alert Level 2 | . 1 . 1 1 . 1 2 2 . 2 . . . . Low Security (%) 78 | . 99 100 90 98 . 80 67 23 100 . . . . . Level 1 12 | . . . 9 1 . 19 24 63 . 15 . . . . Level 2 8 | . . . . . . . 8 12 . 84 . . . . Level 3 . | . . . . . . . . . . . . . . . Level 4 . | . . . . . . . . . . . . . . . Level 5 . | . . . . . . . . . . . . . . . High Security . | . . . . . . . . . . . . . . . Max Security . | . . . . . . . . . . . . . . . Squads Dispatched 17 | . 5 1 3 . . . 1 5 . 2 . . . . Investigation 5 | . 2 1 1 . . . . 1 . . . . . . Extermination 1 | . . . . . . . . . . 1 . . . . Reinforcement 8 | . 3 . 2 . . . 1 2 . . . . . . Assault 3 | . . . . . . . . 2 . 1 . . . . Garrison . | . . . . . . . . . . . . . . . Intercept . | . . . . . . . . . . . . . . . Searches Triggered . | . . . . . . . . . . . . . . . Construction Impeded 1 | . . . . . . . 1 . . . . . . . Haulers Reinforced . | . . . . . . . . . . . . . . . Active Scanning Responses . | . . . . . . . . . . . . . . . Cargo Convoy Interrupts . | . . . . . . . . . . . . . . . Stealth | -11 -10 -10 -9 -9 -9 -8 -8 -8 -8 -6 -6 -6 -6 -6 --------- Run | Jun Mat Min Mat Min Exi Min Mat Sto Rec Fac Low Low Zio Dee Distress Signals 2 | . 1 . . . . . . 1 . . . . . . Communications Jammed . | . . . . . . . . . . . . . . . Distress Signals . | . . . . . . . . . . . . . . . Times Spotted 223 | . 20 17 11 9 . 15 12 30 1 32 8 7 . 61 Peak Tracking Total 36 | . 2 6 2 4 . 4 4 5 . 13 3 4 . 36 Tactical Retreats 13 | . . 2 . . . . 2 . . 2 1 2 . 4 Traps | -11 -10 -10 -9 -9 -9 -8 -8 -8 -8 -6 -6 -6 -6 -6 ------- Run | Jun Mat Min Mat Min Exi Min Mat Sto Rec Fac Low Low Zio Dee Traps Triggered 1 | . 1 . . . . . . . . . . . . . Indirectly . | . . . . . . . . . . . . . . . Trap Hack Attempts . | . . . . . . . . . . . . . . . Triggered . | . . . . . . . . . . . . . . . Disarmed . | . . . . . . . . . . . . . . . Reprogrammed . | . . . . . . . . . . . . . . . Reused 4 | . . . . . . . . . . . . . . 4 Traps Extracted . | . . . . . . . . . . . . . . . Installed 6 | . . . . . . . . . . . . . . 6 Triggered 2 | . . . . . . . . . . . 2 . . . Most Traps Carried 6 | . . . . . . . . . . . 6 6 6 6 Machines | -11 -10 -10 -9 -9 -9 -8 -8 -8 -8 -6 -6 -6 -6 -6 ---------- Run | Jun Mat Min Mat Min Exi Min Mat Sto Rec Fac Low Low Zio Dee Machines Disabled 23 | . . 2 2 1 . 6 3 6 . 1 . . . 2 Max in Single Turn 5 | . . 1 2 1 . 5 1 1 . 1 . . . 1 Machines Repaired . | . . . . . . . . . . . . . . . Machines Sabotaged . | . . . . . . . . . . . . . . . Overloaded Fab Kills . | . . . . . . . . . . . . . . . Hacking | -11 -10 -10 -9 -9 -9 -8 -8 -8 -8 -6 -6 -6 -6 -6 --------- Run | Jun Mat Min Mat Min Exi Min Mat Sto Rec Fac Low Low Zio Dee Machines Accessed 36 | . 6 2 2 . 1 . 7 6 7 4 . 1 . . Terminals 21 | . 4 . 1 . . . 7 5 2 2 . . . . Fabricators 1 | . . . . . . . . . . 1 . . . . Repair Stations 1 | . . . . . . . . . . 1 . . . . Recycling Units 9 | . 2 . 1 . . . . 1 5 . . . . . Scanalyzers . | . . . . . . . . . . . . . . . Garrison Access . | . . . . . . . . . . . . . . . Total Hacks 76 | . 14 2 2 . 1 . 20 11 16 9 . 1 . . Successful 45 | . 6 2 1 . 1 . 11 7 9 7 . 1 . . Failed 29 | . 7 . 1 . . . 8 4 7 2 . . . . Catastrophic 5 | . 1 . . . . . . 3 1 . . . . . Database Lockouts 2 | . 1 . . . . . 1 . . . . . . . Manual 73 | . 14 . 2 . . . 18 9 16 5 . . 9 . Terminals 54 | . 10 . 1 . . . 20 10 8 5 . . . . Fabricators 1 | . . . . . . . . . . 1 . . . . Repair Stations 3 | . . . . . . . . . . 3 . . . . Recycling Units 14 | . 4 . 1 . . . . 1 8 . . . . . Scanalyzers . | . . . . . . . . . . . . . . . Garrison Access . | . . . . . . . . . . . . . . . Terminal Hacks 24 | . 3 2 . . 1 . 7 5 4 1 . 1 . . Record 1 | . . . . . 1 . . . . . . . . . Robot Analysis 4 | . 2 . . . . . . . 2 . . . . . Prototype ID Bank 3 | . 1 . . . . . 1 . 1 . . . . . Open Door 4 | . . 2 . . . . . 1 . . . 1 . . Branch Access Points 2 | . . . . . . . 1 . . 1 . . . . Terminal Index 1 | . . . . . . . 1 . . . . . . . Alert Level 4 | . . . . . . . 1 2 1 . . . . . Unreport Threat 3 | . . . . . . . 1 2 . . . . . . Locate Traps 1 | . . . . . . . 1 . . . . . . . Hauler Manifests 1 | . . . . . . . 1 . . . . . . . Fabricator Hacks 1 | . . . . . . . . . . 1 . . . . Network Status 1 | . . . . . . . . . . 1 . . . . Repair Station Hacks 2 | . . . . . . . . . . 2 . . . . Scan Component 1 | . . . . . . . . . . 1 . . . . Repair 1 | . . . . . . . . . . 1 . . . . Recycling Unit Hacks . | . . . . . . . . . . . . . . . Scanalyzer . | . . . . . . . . . . . . . . . Garrison Access Hacks . | . . . . . . . . . . . . . . . Unauthorized Hacks 18 | . 3 . 1 . . . 4 2 5 3 . . . . Terminals 9 | . 1 . . . . . 4 1 . 3 . . . . Track 1 | . 1 . . . . . . . . . . . . . Botnet 5 | . . . . . . . 3 . . 2 . . . . Operators 3 | . . . . . . . 1 1 . 1 . . . . Fabricators . | . . . . . . . . . . . . . . . Repair Stations . | . . . . . . . . . . . . . . . Recycling Units 9 | . 2 . 1 . . . . 1 5 . . . . . Tunnel 9 | . 2 . 1 . . . . 1 5 . . . . . Scanalyzers . | . . . . . . . . . . . . . . . Garrison Access . | . . . . . . . . . . . . . . . Data Cores Recovered 1 | . . . . . . . . . . 1 . . . . Used . | . . . . . . . . . . . . . . . Hacking Detections 19 | . 2 . 1 . . . 7 4 2 3 . . . . Full Trace Events . | . . . . . . . . . . . . . . . Feedback Events . | . . . . . . . . . . . . . . . Feedback Blocked . | . . . . . . . . . . . . . . . Robot Schematics Acquired . | . . . . . . . . . . . . . . . Robots Built . | . . . . . . . . . . . . . . . Authchips . | . . . . . . . . . . . . . . . Time . | . . . . . . . . . . . . . . . Total Robot Build Rating . | . . . . . . . . . . . . . . . Part Schematics Acquired . | . . . . . . . . . . . . . . . Parts Built . | . . . . . . . . . . . . . . . Authchips . | . . . . . . . . . . . . . . . Time . | . . . . . . . . . . . . . . . Total Part Build Rating . | . . . . . . . . . . . . . . . Parts Repaired 1 | . . . . . . . . . . 1 . . . . Time 13 | . . . . . . . . . . 13 . . . . Parts Recycled . | . . . . . . . . . . . . . . . Recycled Matter . | . . . . . . . . . . . . . . . Retrieved Matter . | . . . . . . . . . . . . . . . Retrieved Components . | . . . . . . . . . . . . . . . Parts Scanalyzed . | . . . . . . . . . . . . . . . Part Schematics Acquired . | . . . . . . . . . . . . . . . Parts Damaged . | . . . . . . . . . . . . . . . Bothacking | -11 -10 -10 -9 -9 -9 -8 -8 -8 -8 -6 -6 -6 -6 -6 ------------ Run | Jun Mat Min Mat Min Exi Min Mat Sto Rec Fac Low Low Zio Dee Used RIF Installer . | . . . . . . . . . . . . . . . Robots Hacked . | . . . . . . . . . . . . . . . Non-combat . | . . . . . . . . . . . . . . . Combat . | . . . . . . . . . . . . . . . Robot Hacks Applied . | . . . . . . . . . . . . . . . Relay Couplers Released . | . . . . . . . . . . . . . . . Fabnet Peak Effective % . | . . . . . . . . . . . . . . . Robots Rewired . | . . . . . . . . . . . . . . . Allies Hacked . | . . . . . . . . . . . . . . . Hacks Repelled . | . . . . . . . . . . . . . . . Allies | -11 -10 -10 -9 -9 -9 -8 -8 -8 -8 -6 -6 -6 -6 -6 -------- Run | Jun Mat Min Mat Min Exi Min Mat Sto Rec Fac Low Low Zio Dee Total Allies 19 | . . 3 . . . . . 12 . . . . 4 . Largest Group 11 | . . 3 3 1 . . . 11 11 11 . . 4 4 Highest-Rated Group 204 | . . 40 40 8 . . . 204 204 204 . . 101 101 Highest-Rated Ally 31 | . . 16 16 8 . . . 31 31 31 . . 31 31 Total Orders . | . . . . . . . . . . . . . . . Ally Attacks 157 | . . 11 12 1 . . . 13 13 90 . . . 17 Total Damage 2049 | . . 108 118 . . . . 211 202 1184 . . . 226 Kills 16 | . . 3 1 . . . . . 2 10 . . . . Allies Corrupted . | . . . . . . . . . . . . . . . Allies Melted 1 | . . . . . . . . 1 . . . . . . Intel | -11 -10 -10 -9 -9 -9 -8 -8 -8 -8 -6 -6 -6 -6 -6 ------- Run | Jun Mat Min Mat Min Exi Min Mat Sto Rec Fac Low Low Zio Dee Robot Analysis Total 4 | . 2 . . . . . . . 2 . . . . . Derelict Logs Recovered 3 | . . 1 . 1 . . . . . . 1 . . . Drone Launches . | . . . . . . . . . . . . . . . Drone Recoveries . | . . . . . . . . . . . . . . . Exploration | -11 -10 -10 -9 -9 -9 -8 -8 -8 -8 -6 -6 -6 -6 -6 ------------- Run | Jun Mat Min Mat Min Exi Min Mat Sto Rec Fac Low Low Zio Dee Turns Passed 24241 | . 2284 2276 752 1365 576 1755 492 1431 1891 1130 1640 1748 1975 4926 Spaces Moved 10310 | 1 720 677 255 547 241 589 249 462 777 633 951 1030 1188 1990 Core . | . . . . . . . . . . . . . . . Treads 9394 | . 519 677 255 547 241 589 . 214 777 633 951 1030 1188 1773 Legs 419 | 1 201 . . . . . . . . . . . . 217 Wheels 497 | . . . . . . . 249 248 . . . . . . Hover . | . . . . . . . . . . . . . . . Flight . | . . . . . . . . . . . . . . . Fastest Speed 120 | 120 120 320 240 240 240 240 150 123 240 160 160 161 163 163 Average Speed 214 | 120 266 320 257 240 240 286 163 215 240 162 160 162 163 219 Slowest Speed 560 | 120 400 320 320 240 240 320 245 560 240 240 240 163 163 510 Overloaded Moves . | . . . . . . . . . . . . . . . Propulsion Burnouts . | . . . . . . . . . . . . . . . Robots Hopped . | . . . . . . . . . . . . . . . Cave-ins Triggered . | . . . . . . . . . . . . . . . Exploration Rate (%) 69 | 1 95 97 32 99 60 97 30 82 88 15 90 96 83 78 Regions Visited 14 Branch Regions 10 Pre-discovered Areas 13 | . 2 . 1 1 1 . . 1 5 . . . 2 . Known Exits Taken 5 | . . . . . . . 1 . . 1 1 1 1 . Unknown Exits Taken 9 | 1 1 1 1 1 1 1 . 1 1 . . . . . Scrap Searched 13 | . . 1 . 1 . 1 . . . . 4 4 2 . Spaces Dug 83 | . . 38 9 . . . 10 19 . . . 3 . 4 Terrain Destroyed 414 | . . 56 15 10 . 110 72 81 . . 9 20 . 41 Melee 8 | . . . . . . . 1 4 . . . 3 . . Projectile 21 | . . . 6 3 . 1 . 9 . . . . . 2 AOE 385 | . . 56 9 7 . 109 71 68 . . 9 17 . 39 Terrain Rammed . | . . . . . . . . . . . . . . . Walls Destroyed . | . . . . . . . . . . . . . . . Machines Disabled . | . . . . . . . . . . . . . . . Actions | -11 -10 -10 -9 -9 -9 -8 -8 -8 -8 -6 -6 -6 -6 -6 --------- Run | Jun Mat Min Mat Min Exi Min Mat Sto Rec Fac Low Low Zio Dee Total 11728 | . 990 764 312 568 240 622 298 716 795 711 1013 1093 1227 2379 Wait 574 | . 181 38 20 1 . 6 6 87 1 19 13 39 13 150 Move 10296 | . 719 676 254 546 240 588 248 461 776 632 950 1029 1187 1990 Hop . | . . . . . . . . . . . . . . . Pick Up 103 | . 22 13 5 1 . 2 3 17 3 14 4 3 3 13 Fast Attach 54 | . 3 2 2 . . . 1 9 1 4 . . 9 23 Attach 74 | . 5 6 1 2 . 2 3 12 3 9 2 1 2 26 Detach 20 | . 1 . . . . . 1 4 1 1 . . 5 7 Swap 75 | . 3 4 3 1 . 4 6 16 . 2 14 5 2 15 Drop 65 | . 8 9 6 . . . 3 10 3 10 2 3 6 5 Fire 411 | . 46 15 19 14 . 15 26 84 1 18 24 10 . 139 Melee 18 | . . . . . . . 1 14 . . . 3 . . Ram 1 | . . . . . . . . . . . . . . 1 Kick . | . . . . . . . . . . . . . . . Crush 27 | . 2 1 2 3 . 5 . 2 6 2 . . . 4 Escape Stasis . | . . . . . . . . . . . . . . . Rewire 4 | . . . . . . . . . . . 4 . . . Trap 6 | . . . . . . . . . . . . . . 6 Miscellaneous . | . . . . . . . . . . . . . . . Route ------- -11/Junkyard -10/Materials (discovered 4 exits: *Mat x3 / *Min) -10/Mines (discovered 2 exits: *Mat x2) -9/Materials (discovered 2 exits: *Mat / [*Min]) -9/Mines (discovered 3 exits: *Mat x2 / *Exi) -9/Exiles -8/Mines (discovered 2 exits: *Mat x2) -8/Materials (discovered 2 exits: *Sto x2) -8/Storage -8/Recycling -6/Factory (discovered 2 exits: *Low x2) -6/Lower Caves -6/Lower Caves (discovered 2 exits: [*Fac] / *Zio) -6/Zion (discovered 2 exits: *Dee / [*Pro]) -6/Deep Caves (discovered 1 exit: [*Pro]) History --------- Turn | Location | Event 1 | -11/Junkyard | Discovered new exit (range 0) 1 | -11/Junkyard | Entered Materials 221 | -10/Materials | Discovered new exit (range 16) 312 | -10/Materials | Build established: Mutant 957 | -10/Materials | Discovered new exit (range 12) 1621 | -10/Materials | Discovered new exit (range 16) 1997 | -10/Materials | Discovered new exit (range 13) 2068 | -10/Materials | Central database locked down 2285 | -10/Materials | Entered Mines 2290 | -10/Mines | Met a Derelict bent on vengeance 2538 | -10/Mines | A weapon hastily lodged in a ceiling crevice suddenly fell to the ground 2690 | -10/Mines | Discovered new exit (range 16) 2697 | -10/Mines | Met a Derelict who couldn't figure out how to use a Trap Extractor 2835 | -10/Mines | Assembled infested the area 2840 | -10/Mines | Assisted by a Guerilla fighting off Assembled 2919 | -10/Mines | Core integrity fell below 50% 3251 | -10/Mines | Discovered new exit (range 4) 3697 | -10/Mines | Met a Derelict shopkeep closing up shop 3846 | -10/Mines | Assisted by bots powering up and referring to "LRC-V3" 4225 | -10/Mines | Learned 2 Materials zone layouts 4561 | -10/Mines | Entered Materials 4561 | -9/Materials | Accompanied by 3 allies 4561 | -9/Materials | Evolved 2 slots: Propulsion x1, Utility x1 5138 | -9/Materials | Discovered new exit (range 4) 5282 | -9/Materials | Discovered new exit (range 6) 5313 | -9/Materials | Entered Mines 5313 | -9/Mines | Accompanied by 1 ally 5568 | -9/Mines | Learned Materials emergency access door positions 5573 | -9/Mines | Discovered new exit (range 8) 5855 | -9/Mines | Learned location of Storage (-8) 6134 | -9/Mines | Discovered new exit (range 8) 6391 | -9/Mines | Received a Rocket Launcher from a helpful Derelict 6601 | -9/Mines | Deemed a non-threat by the Exiles lab entrance 6668 | -9/Mines | Discovered new exit (range 5) 6678 | -9/Mines | Entered Exiles 6743 | -9/Exiles | Met 8R-AWN 6779 | -9/Exiles | Met EX-HEX 6854 | -9/Exiles | Met EX-BIN 6933 | -9/Exiles | Met EX-DEC 7010 | -9/Exiles | Learned location of Zion (-6) 7226 | -9/Exiles | Discovered new exit (range 12) 7254 | -9/Exiles | Entered Mines 7866 | -8/Mines | Discovered new exit (range 12) 8567 | -8/Mines | Discovered new exit (range 13) 9009 | -8/Mines | Entered Materials 9009 | -8/Materials | Evolved 2 slots: Propulsion x1, Utility x1 9216 | -8/Materials | Identified exit to Storage 9216 | -8/Materials | Central database locked down 9303 | -8/Materials | Build established: Scavenger-Mutant 9501 | -8/Materials | Entered Storage 10620 | -8/Storage | Met a pair of Derelict thieves 10772 | -8/Storage | Assisted by bots powering up and referring to "LRC-V3" 10913 | -8/Storage | Used back door to open Recycling access 10913 | -8/Storage | Discovered new exit (range 5) 10932 | -8/Storage | Entered Recycling 10932 | -8/Recycling | Accompanied by 11 allies 11072 | -8/Recycling | Build established: Commander-Mutant 11213 | -8/Recycling | System corruption reached 10% 11350 | -8/Recycling | Discovered new exit (range 9) 12823 | -8/Recycling | Entered Factory 12823 | -6/Factory | Accompanied by 11 allies 12823 | -6/Factory | Evolved 4 slots: Propulsion x2, Utility x2 12975 | -6/Factory | Repaired Cargo Storage Unit 13236 | -6/Factory | Spotted B-75 Beast 13313 | -6/Factory | Build established: Scavenger-Mutant 13379 | -6/Factory | Identified exit to Lower Caves 13873 | -6/Factory | First assault squad dispatched 13953 | -6/Factory | Entered Lower Caves 14000 | -6/Lower Caves | Build established: Mutant 14645 | -6/Lower Caves | Encountered a Warlord checkpoint 15043 | -6/Lower Caves | Learned Factory emergency access door positions 15054 | -6/Lower Caves | Discovered new exit (range 8) 15591 | -6/Lower Caves | Identified exit to Lower Caves 15593 | -6/Lower Caves | Entered another Lower Caves area 15682 | -6/Lower Caves | Discovered new exit (range 4) 16278 | -6/Lower Caves | Discovered new exit (range 10) 16292 | -6/Lower Caves | Identified exit to Zion 16311 | -6/Lower Caves | Encountered a Warlord checkpoint 17341 | -6/Lower Caves | Entered Zion 17464 | -6/Zion | Discovered new exit (range 8) 17594 | -6/Zion | Given the Hacking Drone Bay 17599 | -6/Zion | Found Prototype Device 17600 | -6/Zion | Identified Hacking Drone Bay 17826 | -6/Zion | Learned location of Warlord (-5) 18053 | -6/Zion | Acquired unknown access codes intercepted by a Zionite 18331 | -6/Zion | Found Prototype Device 18331 | -6/Zion | Identified Bomb Factory No. 2 18492 | -6/Zion | Found Prototype Processor 18492 | -6/Zion | Identified Exp. Signal Interpreter 18495 | -6/Zion | Found Exp. Signal Interpreter 18499 | -6/Zion | Found Prototype Processor 18499 | -6/Zion | Identified Spectral Analyzer 18502 | -6/Zion | Found Prototype Hackware 18502 | -6/Zion | Identified Exp. Hacking Suite 18506 | -6/Zion | Found Prototype Processor 18506 | -6/Zion | Identified Exp. Targeting Computer 18510 | -6/Zion | Found Prototype Processor 18510 | -6/Zion | Identified Exp. Target Analyzer 18513 | -6/Zion | Found Prototype Processor 18513 | -6/Zion | Identified Exp. Core Analyzer 18625 | -6/Zion | Gained Derelict followers 19170 | -6/Zion | Opened final containment barrier to the Deep Caves 19191 | -6/Zion | Discovered new exit (range 5) 19195 | -6/Zion | Saw the warning signs outside the Deep Caves entrance 19200 | -6/Zion | Identified exit to Deep Caves 19316 | -6/Zion | Entered Deep Caves 19316 | -6/Deep Caves | Accompanied by 4 allies 19942 | -6/Deep Caves | Attacked by Z-Imprinter 20033 | -6/Deep Caves | Destroyed Z-Imprinter 20056 | -6/Deep Caves | Lost 8 parts (1p2n2u3w) 20347 | -6/Deep Caves | Z-Facility disabled 20376 | -6/Deep Caves | Lost 3 parts (3n) 20639 | -6/Deep Caves | System corruption reached 10% 20694 | -6/Deep Caves | Lost 5 parts (1p1u3w) 20738 | -6/Deep Caves | Found Prototype Protection 20738 | -6/Deep Caves | Identified Zio. Heavy Carapace 20982 | -6/Deep Caves | Build established: Scavenger-Mutant 21902 | -6/Deep Caves | Discovered new exit (range 6) 22621 | -6/Deep Caves | Found Zio. Heavy Carapace 22659 | -6/Deep Caves | Found Prototype Protection 23095 | -6/Deep Caves | Spotted as-27176 23108 | -6/Deep Caves | Identified Zio. Weapon Casing 23152 | -6/Deep Caves | Destroyed as-27176 23171 | -6/Deep Caves | Lost 6 parts (3n3u) 23431 | -6/Deep Caves | Build established: Mutant 24000 | -6/Deep Caves | Build established: Scavenger-Mutant 24141 | -6/Deep Caves | Triggered Deep Caves wall 24144 | -6/Deep Caves | Exposed GOLEM chamber 24172 | -6/Deep Caves | Spotted AS-31913 24176 | -6/Deep Caves | Spotted AS-60434 24191 | -6/Deep Caves | Core integrity fell below 50% 24211 | -6/Deep Caves | Destroyed 38 combat bots 24236 | -6/Deep Caves | Spotted as-97415 24240 | -6/Deep Caves | Core integrity fell below 20% 24242 | -6/Deep Caves | Destroyed by as-97415 with Assembled Focal Cannon Last Messages --------------- 24191_ Penetrated by Slug. 24193_ System corrupted: Substantial component data lost. 24195_ Penetrated by Slug. 24196_ as-32841 released from Mobile Assembly Unit. 24196_ Propulsion Shielding destroyed. 24196_ Carbon-fiber Leg destroyed. 24201_ Penetrated by Slug. 24211_ Carbon-fiber Leg destroyed. 24211_ Arm. Treads destroyed. 24211_ Zio. Weapon Casing destroyed. 24219_ System corrupted: Matter fused (-7). 24237_ as-97415: "DSI9AT1D G8OHIBQ29FWG 26R186 QD12WHW8W33 TDK1 81FTS" 24239_ Mni. Grenade Launcher destroyed. 24239_ Disruptor Cannon destroyed. 24241_ Chain reaction triggered in Prototype Reactor. 24241_ Destroyed Imp. Heat Sink. 24241_ 12-CI5(g) destroyed. 24241_ Zio. Composite Leg I destroyed. 24241_ Destroyed Zio. Composite Leg I. 24242_ as-97415 GOLEM Unit beginning Prototype Reactor integration. Map ----- +----------------------------------------------------+ | ?????????????????????????????????? | | ???????????????????????????????### | | ?????????????????????????#????## | | ??????????????????? ??# ????# | | ????????# ???? ### ????# | | ??????" # ????## | | ?????? #????# | | ??????? #??## | | ??????? = ??# | | ??????? #??# | | ??????? = ##?# | | ???????? = #?# | | ???????? #?## | | ???????? #??### | | ??????### == #????? | | ??????# #????? | | ??????# = = * #????? | | ??????#! ! #????? | | ??????# = = ##??## | | ??????# = * #?## | | ??????### ### | | ????????" * * ## | | ????????" ## | | ????????" = * | | ????????""" = | | ????????"@G ! | | ????????"" % #### | | ????????" = % #??## | | ????????"" ##???# | | ????????" " #????# | | ????????" ##;; ;; "# ##????# | | ????????""" ###### ;; "###?????? | | ?????????" ????###; "#???????? | | ?????????#######?????###"#???????? | | | | | | | | | | | | | | | | | | | | | | | | | | | | | | | | | +----------------------------------------------------+ Best States ------------- Heat Dissipation 63 Coolant Potential 50 Energy Generation 27 Energy Capacity 290 Matter Stores 300 Matter Capacity 300 Sight Range 24 Robot Scan Range 16 Terrain Scan Density 10 Armor Coverage 1200 Propulsion Shielding 33 Weapon Shielding 100 Evasion (%) 55 Targeting Accuracy 12 Recoil Reduction 6 Energy Filtering 30 Offensive Hacking 20 Authchip Count 1 Trap Extractor Capacity 6 Item Schematics ----------------- None Robot Schematics ------------------ None Fabricated ------------ Nothing Alien Tech Used ----------------- None Achievements -------------- None Challenges ------------ None Game ------ Seed LatentThermicAirjet Manual? 0 Play Time 01:24:28 Cumulative 329.2 hours Start 2023.04.27 @ 00:07:56 End 2023.04.27 @ 04:47:17 Sessions 3 Manual Loads 0 Difficulty Rogue Special Mode None Game No. 467 Rogue 440 Adventurer 4 Explorer 23 Win Type - Total 18 Types 14/0/1/2/1/0/0/0/0 Lore% 77 Gallery% 92 Achievement% 82 Wizard Run 0 Options --------- ASCII 0 Keyboard 1 Movement Numpad Keybinds 0 Fullscreen 2 Font 18/SmallcapsGlow Map View 76x50 Tactical HUD 1 Map Filters NONE Filters NONE Steam 1 RUN: 602cfbb3-ba2e-4fba-ba87-8e94aeba146f